Cogmind - Beta 16.1 @@@ ROGUE MODE // 2026.04.06 @ 22:43:59 Player: Maelyn Result: Destroyed by Y-45 Defender with Beam Rifle Performance ------------- Evolutions (1) 500 Regions Visited (3) 600 Robots Destroyed (20) 100 Value Destroyed (493) 493 Prototype IDs (0) 0 Alien Tech Used (0) 0 Bonus (0) 0 TOTAL SCORE: 1693 Bonus ------- None Cogmind --------- Core Integrity 0/400 Matter 165/300 Energy 100/100 System Corruption 0% Temperature Hot (257) Movement Core (700) Ox13 Location -9/Storage Parts ------- > --- POWER (1) -------- (None) > --- PROPULSION (2) --- (None) > --- UTILITY (3) ------ High-capacity Storage Unit > --- WEAPON (3) ------- (None) > --- INVENTORY (20) --- Light Treads Aluminum Leg Aluminum Leg Aluminum Leg Heat Sink Heat Sink Compact Battery (200) High-capacity Matter Pod (0) Advanced Weight Redist. System Particle Charger Particle Charger Particle Charger Heavy Particle Cannon High-powered Shotgun High-powered Shotgun High-powered Shotgun Flak Cannon Flak Cannon Peak State ------------ > --- POWER ------------ Light Ion Engine > --- PROPULSION ------- Light Treads Light Treads > --- UTILITY ---------- High-capacity Storage Unit Advanced Weight Redist. System Hardened Light Armor Plating > --- WEAPON ----------- Heavy Particle Cannon Flak Cannon Flak Cannon > --- INVENTORY -------- Light Treads Aluminum Leg Aluminum Leg Aluminum Leg Heat Sink Heat Sink Compact Battery High-capacity Matter Pod Advanced Weight Redist. System Particle Charger Particle Charger Trap Extractor EM Pulse Gun Small Laser High-powered Shotgun High-powered Shotgun High-powered Shotgun High-powered Shotgun Flak Cannon Flak Cannon [Rating: 22] Favorites ----------- Power Ion Engine Engine Ion Engine Propulsion Aluminum Leg Treads Light Treads Leg Aluminum Leg Utility High-capacity Storage Unit Device Advanced Weight Redist. System Storage High-capacity Storage Unit Processor Terrain Scan Processor Protection Hardened Light Armor Plating Weapon Assault Rifle Energy Gun EM Pulse Gun Energy Cannon Heavy Particle Cannon Ballistic Gun Assault Rifle Ballistic Cannon Flak Cannon Build | -11 -10 -9 -9 ------- Run | Yrd Mat Mat Sto Slots Evolved 2 | . . 2 . Power . | . . . . Propulsion . | . . . . Utility 1 | . . 1 . Weapon 1 | . . 1 . Parts Attached 24 | 7 3 14 . Power 2 | 1 . 1 . Engine 2 | 1 . 1 . Core . | . . . . Reactor . | . . . . Propulsion 6 | 2 . 4 . Treads 4 | . . 4 . Leg 2 | 2 . . . Wheel . | . . . . Hover . | . . . . Flight . | . . . . Utility 7 | 2 3 2 . Device 2 | 1 . 1 . Storage 3 | 1 2 . . Processor 1 | . 1 . . Hackware . | . . . . Protection 1 | . . 1 . Artifact . | . . . . Weapon 9 | 2 . 7 . Energy Gun 1 | . . 1 . Energy Cannon 2 | . . 2 . Ballistic Gun 4 | 2 . 2 . Ballistic Cannon 2 | . . 2 . Launcher . | . . . . Special Weapon . | . . . . Impact Weapon . | . . . . Slashing Weapon . | . . . . Piercing Weapon . | . . . . Special Melee Weapon . | . . . . Unidentified Prototypes . | . . . . Parts Lost 9 | . 1 . 8 Power 1 | . . . 1 Propulsion 2 | . . . 2 Utility 3 | . 1 . 2 Weapon 3 | . . . 3 Highest Loss Streak 8 | . 1 . 8 To Critical Strikes . | . . . . Average Backups 13 | 3 7 19 19 Power . | 1 1 . . Propulsion 2 | 1 2 3 4 Utility 5 | . 2 7 8 Weapon 5 | 1 1 7 6 Tool/Special . | . . . . Unused Backups 19 | . . 4 15 Power . | . . . . Propulsion 3 | . . 1 2 Utility 11 | . . 2 9 Weapon 5 | . . 1 4 Tool/Special . | . . . . Average Slot Usage (%) 97 | . 97 99 80 Engine 11 | . 14 11 8 Treads 10 | . . 16 14 Leg 13 | . 28 5 . Device 9 | . 8 10 7 Storage 12 | . 14 11 11 Processor 5 | . 3 8 . Protection 2 | . . 2 9 Energy Cannon 3 | . . 3 16 Ballistic Gun 19 | . 28 16 2 Ballistic Cannon 7 | . . 12 9 Peak Build Rating 22 | 7 9 22 22 Average Rating 14 | 4 7 20 18 On Entrance 9 | . 7 9 22 Avg Prop Armor Cover (%) . | . . . . Naked Turns . | . . . . Heaviest Build 66 | 15 50 66 66 Greatest Support 49 | 20 20 49 49 Greatest Overweight (x) 14 | 4 2 2 14 Average Overweight (x) 1 | . 1 1 3 Largest Inventory Capacity 20 | 8 20 20 20 Average Capacity 17 | 7 16 20 20 Most Carried 20 | 6 11 20 20 Average Carried 14 | 3 7 19 19 Final Capacity 20 | 8 20 20 20 Final Carried 20 | 4 11 20 18 Class Distribution -------------------- 41% | Mutant 40% | Gunner 18% | Tank Dominant Class ---------------- Mutant | -10/Materials Gunner | -9/Materials Tank | -9/Storage Resources | -11 -10 -9 -9 ----------- Run | Yrd Mat Mat Sto Matter Collected 598 | 225 103 270 . Remotely . | . . . . Salvage Created 763 | 90 103 542 28 Parts 47 | 3 6 35 3 Haulers Intercepted 2 | . . 2 . Recyclers Shooed 1 | . . 1 . Parts Field Recycled . | . . . . Retrieved Matter . | . . . . Parts Self-Destructed . | . . . . Prevented . | . . . . Parts Restored . | . . . . Kills | -11 -10 -9 -9 ------- Run | Yrd Mat Mat Sto Combat Hostiles Destroyed 9 | . 2 6 1 Guns 4 | . 2 2 . Cannons 5 | . . 4 1 Classes Destroyed 9 | 2 1 5 1 Worker 1 | . . 1 . Builder 1 | . . 1 . Tunneler 1 | 1 . . . Hauler 2 | . . 2 . Recycler 3 | 1 . 2 . Watcher 3 | . . 2 1 Swarmer 1 | . . . 1 Grunt 3 | . 2 1 . Sentry 5 | . . 5 . Best Kill Streak 5 | 2 2 5 1 Combat Bots Only 2 | . 2 2 1 Max Kills in Single Turn 2 | 1 1 2 1 Gunslinging . | . . . . Exploded . | . . . . Melee . | . . . . Uniques/NPCs Destroyed . | . . . . Combat | -11 -10 -9 -9 -------- Run | Yrd Mat Mat Sto Hostile Shots Fired 176 | . 11 35 130 Missed 43 | . 3 17 23 Hits 133 | . 8 18 107 Projectile 133 | . 8 18 107 Critical Strikes 4 | . 1 . 3 Damage Taken 1775 | . 111 406 1258 Core 423 | . 17 19 387 Absorbed by Shields . | . . . . Core Remaining (%) 96 | 100 93 . . Volleys Fired 34 | 3 7 14 10 Largest 3 | 2 2 3 3 Hottest 187 | 40 40 149 187 Shots Fired 86 | 6 14 42 24 Gun 45 | 6 14 20 5 Cannon 41 | . . 22 19 Launcher . | . . . . Special . | . . . . Kinetic 70 | 6 14 38 12 Thermal 16 | . . 4 12 Explosive . | . . . . Electromagnetic . | . . . . Robot Hit Streak 9 | 4 9 5 3 Robot Miss Streak 11 | 2 2 7 11 Penetration Max . | . . . . Secondary Targets . | . . . . Shots Hit Robots 52 | 4 12 26 10 Core Hits 42 | 2 5 30 5 Critical Kills . | . . . . Critical Parts Destroyed . | . . . . Critical Strikes . | . . . . Melee Attacks . | . . . . Impact . | . . . . Slashing . | . . . . Piercing . | . . . . Sneak Attacks . | . . . . Combat Hostiles . | . . . . Follow-up Attacks . | . . . . Damage Inflicted 1151 | 50 153 697 251 Guns 511 | 50 153 225 83 Cannons 478 | . . 310 168 Explosions 162 | . . 162 . Melee . | . . . . Ramming . | . . . . Kinetic 814 | 50 153 460 151 Thermal 175 | . . 75 100 Explosive . | . . . . Electromagnetic 162 | . . 162 . Impact . | . . . . Slashing . | . . . . Piercing . | . . . . Highest Corruption 1 | . 1 . . Average Corruption 1 | . 1 . . Corruption Purged . | . . . . Corruption Blocked . | . . . . Effects 2 | . 2 . . Message Errors 1 | . 1 . . Matter Fused 1 | . 1 . . Overload Shots . | . . . . Overflow Damage 5 | . . . 5 Projectiles 5 | . . . 5 Explosions . | . . . . Melee . | . . . . Knockbacks 5 | . . 5 . Impact . | . . . . Kinetic 5 | . . 5 . Secondary . | . . . . Self-Inflicted Damage 161 | . . 161 . Shots 6 | . . 6 . Rammed . | . . . . Targets Rammed . | . . . . Kicked . | . . . . Crushed . | . . . . Highest Temperature 569 | . 20 295 569 Average Temperature 222 | . 6 82 393 Received Heat Transfer 615 | . 84 87 444 Effects 17 | . . . 17 Shutdowns 3 | . . . 3 Energy Bleed 1 | . . . 1 Interference 4 | . . . 4 Damage (minor) 3 | . . . 3 Damage (major) 4 | . . . 4 Damage (core) 2 | . . . 2 Siege Activations . | . . . . Martial Activations . | . . . . Shielding Activations . | . . . . Robots Disrupted . | . . . . Combat Hostiles . | . . . . Robots Corrupted . | . . . . Combat Hostiles . | . . . . Parts Fried . | . . . . Impact Corruptions . | . . . . Robots Melted . | . . . . Combat Hostiles . | . . . . Parts Melted . | . . . . Heat Transferred 259 | . . 111 148 Parts Sabotaged . | . . . . Parts Stolen . | . . . . Parts Stripped . | . . . . Power Chain Reactions 4 | . . 4 . Alert | -11 -10 -9 -9 ------- Run | Yrd Mat Mat Sto Maximum Alert Level . | . . . . Low Security (%) 100 | 100 100 100 100 Level 1 . | . . . . Level 2 . | . . . . Level 3 . | . . . . Level 4 . | . . . . Level 5 . | . . . . High Security . | . . . . Max Security . | . . . . Peak Influence 113 | 5 40 113 64 Initial 37 | . 3 . 37 Average 25 | 1 3 40 30 Influence Increases 403 | 10 50 296 47 Destroy 0b10 Robot/C 180 | . 40 120 20 Destroy 0b10 Robot/NC 55 | 10 . 40 5 Destroy Leader 70 | . 10 58 2 Disable Machine 90 | . . 75 15 Destroy Structure 8 | . . 3 5 Influence Decreases 403 | 5 55 207 136 Entered New Map 54 | . 2 . 52 Time Decay 285 | 5 43 207 30 Lost Part 64 | . 10 . 54 Squads Dispatched 1 | . . . 1 Investigation . | . . . . Extermination . | . . . . Reinforcement 1 | . . . 1 Assault . | . . . . Garrison . | . . . . Intercept . | . . . . Searches Triggered . | . . . . Construction Impeded . | . . . . Haulers Reinforced . | . . . . Active Scanning Responses . | . . . . Cargo Convoy Interrupts . | . . . . Stealth | -11 -10 -9 -9 --------- Run | Yrd Mat Mat Sto Distress Signals 4 | . . 2 2 Communications Jammed . | . . . . Distress Signals . | . . . . Times Spotted 21 | . 3 10 8 Peak Tracking Total 6 | . 2 4 6 Tactical Retreats . | . . . . Traps | -11 -10 -9 -9 ------- Run | Yrd Mat Mat Sto Traps Triggered 1 | . 1 . . Indirectly . | . . . . Trap Hack Attempts . | . . . . Triggered . | . . . . Disarmed . | . . . . Reprogrammed . | . . . . Reused . | . . . . Traps Extracted . | . . . . Installed . | . . . . Triggered . | . . . . Machines | -11 -10 -9 -9 ---------- Run | Yrd Mat Mat Sto Machines Disabled 6 | . . 5 1 Max in Single Turn 2 | . . 2 1 Machines Repaired . | . . . . Machines Dismantled . | . . . . Machines Sabotaged . | . . . . Overloaded Fab Kills . | . . . . Hacking | -11 -10 -9 -9 --------- Run | Yrd Mat Mat Sto Machines Accessed . | . . . . Terminals . | . . . . Fabricators . | . . . . Repair Stations . | . . . . Recycling Units . | . . . . Scanalyzers . | . . . . Garrison Access . | . . . . Total Hacks . | . . . . Successful . | . . . . Failed . | . . . . Catastrophic . | . . . . Database Lockouts . | . . . . Manual . | . . . . Terminals . | . . . . Fabricators . | . . . . Repair Stations . | . . . . Recycling Units . | . . . . Scanalyzers . | . . . . Garrison Access . | . . . . Terminal Hacks . | . . . . Fabricator Hacks . | . . . . Repair Station Hacks . | . . . . Recycling Unit Hacks . | . . . . Scanalyzer . | . . . . Garrison Access Hacks . | . . . . Unauthorized Hacks . | . . . . Terminals . | . . . . Fabricators . | . . . . Repair Stations . | . . . . Recycling Units . | . . . . Scanalyzers . | . . . . Garrison Access . | . . . . Data Cores Recovered . | . . . . Used . | . . . . Hacking Detections . | . . . . Full Trace Events . | . . . . Feedback Events . | . . . . Feedback Blocked . | . . . . Robot Schematics Acquired . | . . . . Robots Built . | . . . . Authchips . | . . . . Time . | . . . . Total Robot Build Rating . | . . . . Part Schematics Acquired . | . . . . Parts Built . | . . . . Authchips . | . . . . Time . | . . . . Total Part Build Rating . | . . . . Part Studies Acquired . | . . . . Parts Repaired . | . . . . Time . | . . . . Parts Recycled . | . . . . Recycled Matter . | . . . . Retrieved Matter . | . . . . Retrieved Components . | . . . . Parts Scanalyzed . | . . . . Part Schematics Acquired . | . . . . Parts Damaged . | . . . . Bothacking | -11 -10 -9 -9 ------------ Run | Yrd Mat Mat Sto Used RIF Installer . | . . . . Robots Hacked . | . . . . Non-combat . | . . . . Combat . | . . . . Robot Hacks Applied . | . . . . Relay Couplers Released . | . . . . Fabnet Peak Effective % . | . . . . Robots Rewired . | . . . . Allies Hacked . | . . . . Hacks Repelled . | . . . . Allies | -11 -10 -9 -9 -------- Run | Yrd Mat Mat Sto Total Allies . | . . . . Largest Group . | . . . . Highest-Rated Group . | . . . . Highest-Rated Ally . | . . . . Total Orders . | . . . . Ally Attacks . | . . . . Total Damage . | . . . . Kills . | . . . . Allies Corrupted . | . . . . Allies Melted . | . . . . Intel | -11 -10 -9 -9 ------- Run | Yrd Mat Mat Sto Active Infowar (turns) 260 | 12 248 . . Seismic 260 | 12 248 . . Robot Analysis Total . | . . . . Derelict Logs Recovered . | . . . . Drone Launches . | . . . . Drone Recoveries . | . . . . Exploration | -11 -10 -9 -9 ------------- Run | Yrd Mat Mat Sto Turns Passed 1296 | 92 429 683 92 Spaces Moved 528 | 48 203 259 18 Core 26 | 23 . . 3 Treads 202 | . . 187 15 Legs 300 | 25 203 72 . Wheels . | . . . . Hover . | . . . . Flight . | . . . . Fastest Speed 50 | 50 120 190 240 Average Speed 210 | 134 195 228 319 Slowest Speed 750 | 250 260 260 750 Overloaded Moves . | . . . . Propulsion Burnouts . | . . . . Robots Hopped . | . . . . Potential Cave-ins . | . . . . Cave-ins Triggered . | . . . . Exploration Rate (%) 17 | 3 29 30 7 Regions Visited 3 Branch Regions 1 Pre-discovered Areas . | . . . . Known Exits Taken . | . . . . Unknown Exits Taken 3 | 1 1 1 . Scrap Searched . | . . . . Spaces Dug . | . . . . Terrain Destroyed 8 | . . 3 5 Melee . | . . . . Projectile 6 | . . 1 5 AOE 2 | . . 2 . Terrain Rammed . | . . . . Walls Destroyed . | . . . . Machines Disabled . | . . . . Actions | -11 -10 -9 -9 --------- Run | Yrd Mat Mat Sto Total 652 | 69 222 321 40 Wait 9 | . . . 9 Move 525 | 47 202 258 18 Hop . | . . . . Pick Up 42 | 11 9 22 . Fast Attach . | . . . . Attach 11 | 7 1 3 . Detach . | . . . . Swap 15 | 1 2 11 1 Drop 16 | . 1 13 2 Fire 34 | 3 7 14 10 Melee . | . . . . Ram . | . . . . Kick . | . . . . Crush . | . . . . Escape Stasis . | . . . . Rewire . | . . . . Trap . | . . . . Miscellaneous . | . . . . Route ------- -11/Scrapyard -10/Materials -9/Materials -9/Storage History --------- Turn | Location | Event 14 | -11/Scrapyard | Discovered new exit (range 15) 93 | -11/Scrapyard | Entered Materials 228 | -10/Materials | Discovered new exit (range 16) 318 | -10/Materials | Build established: Mutant 522 | -10/Materials | Entered another Materials area 522 | -9/Materials | Evolved 2 slots: Utility x1, Weapon x1 809 | -9/Materials | Build established: Gunner 1132 | -9/Materials | Discovered new exit (range 15) 1205 | -9/Materials | Entered Storage 1284 | -9/Storage | Core integrity fell below 50% 1292 | -9/Storage | Core integrity fell below 20% 1297 | -9/Storage | Destroyed by Y-45 Defender with Beam Rifle Last Messages --------------- disabled. 01276_ Critical hit (Burn: +37). 01277_ Hvy. Particle Cannon destroyed. 01278_ Overheating: Lgt. Ion Engine damaged (-6). 01279_ Power failure, Lgt. Ion Engine shutdown. 01279_ Lgt. Ion Engine destroyed. 01280_ Overheating: System interference. 01280_ Hpw. Shotgun temporarily disabled. 01281_ Overheating: Energy bleed (-20). 01281_ Hrd. Light Armor Plating destroyed. 01282_ Overheating: Core damaged (-60). 01282_ Flak Cannon destroyed. 01284_ Overheating: Core damaged (-60). 01286_ Overheating: Hpw. Shotgun damaged (-3). 01286_ Hpw. Shotgun destroyed. 01289_ S-10 Pest destroyed. 01291_ K-01 Serf collects debris. 01297_ M-13 Machinist repairs G-34 Mercenary. 01297_ K-01 Serf collects debris. Map ----- +----------------------------------------------------+ | | | | | | | | | | | | | | | | | ??????????????????????????????????????????? | | ??????????????????????????????????????????? | | ?????????????????????????????????####?????? | | ??????????????????????#######????#T"#?????? | | ??????????????????????# ###### "###???? | | ??????????????????????" #???? | | ??????????????????????+ " #???? | | ??????????????????????# #???? | | ??????????????????????# ###########???? | | ??????????????????????## ##?????????????? | | ???????????????????????# #??????????????? | | ???????????????????????# * #??????????????? | | ???????????????????????# % #??????????????? | | ???????????????????????# ! #??????????????? | | ???????????????????????+ !#??????????????? | | ????????????"" """ ??? # ]#??????????????? | | ?????????? a # ##?????????????? | | ?????????? ; @ ;#?????????????? | | ?????????????????#####;;g% ##?????????????? | | ??????????????????? #umg #?????????????? | | ????????????????" """ #[Y= #?????????????? | | ???????????????"" """?k #?????????????? | | ????????????????? ""? # #?????????????? | | ????????????????????" # #?????????????? | | ???????????????????""?##u ##?????????????? | | ?????????????????? ??# #??????????????? | | ?????????????????? ???# #??????????????? | | ??????????????????#????# #??????????????? | | ???????????????????????# #??????????????? | | ???????????????????????# #??????????????? | | ???????????????????????? ???????????????? | | ???????????????????????? ???????????????? | | ???????????????????????? ???????????????? | | ??????????????????????????????????????????? | | ??????????????????????????????????????????? | | ??????????????????????????????????????????? | | ??????????????????????????????????????????? | | ??????????????????????????????????????????? | | ??????????????????????????????????????????? | | ??????????????????????????????????????????? | | ??????????????????????????????????????????? | | ??????????????????????????????????????????? | +----------------------------------------------------+ Best States ------------- Heat Dissipation 28 Energy Generation 10 Energy Capacity 250 Matter Stores 265 Matter Capacity 300 Sight Range 16 Terrain Scan Density 85 Additional Mass Support 9 Armor Coverage 150 Evasion (%) 55 Recoil Reduction 2 Item Schematics ----------------- None Robot Schematics ------------------ None Fabricated ------------ Nothing Repaired ---------- Nothing Studied --------- None Alien Tech Used ----------------- None Achievements -------------- None Challenges ------------ None Game ------ Seed MeleeAssemblyMegatreads Manual? 0 Play Time 00:12:58 Cumulative 13.1 hours Start 2026.04.06 @ 22:30:50 End 2026.04.06 @ 22:43:59 Sessions 1 Manual Loads 0 Difficulty Rogue Special Mode None Game No. 35 Rogue 35 Adventurer 0 Explorer 0 Win Type - Total 0 Types 0/0/0/0/0/0/0/0/0/0 Lore% 7 Gallery% 15 Achievement% 9 Wizard Run 0 Options --------- Layout 2 ASCII 0 Keyboard 0 Movement Mouse Keybinds 0 Fullscreen 1 Font 24/Crisp Map View 50x44 Zoom Use 0% Tactical HUD 1 Map Filters NONE Filters NONE Steam 1 RUN: e0bfe274-f3c4-4e44-a65b-9fb6c156f1a7